fUST/lending_fUST_20250803
["ID","MTS","AMOUNT","RATE_DAILY","PERIOD"]
[376918237,1754164261531,-460.0,0.00026999,10]
[376918238,1754164261541,-460.0,0.00026999,10]
[376918239,1754164261550,-460.0,0.00026999,10]
[376918240,1754164261559,-460.0,0.00026999,10]
[376918241,1754164261571,-460.0,0.00026999,10]
[376918242,1754164261584,-460.0,0.00026999,10]
[376918243,1754164261593,-460.0,0.00026999,10]
[376918244,1754164261603,-460.0,0.00026999,10]
[376918245,1754164261612,-401.72412268,0.00026999,10]
[376918246,1754164261624,-23.6564128,0.00026999,10]
[376918247,1754164261634,-460.0,0.00026999,10]
[376918248,1754164261643,-460.0,0.00026999,10]
[376918249,1754164261654,-460.0,0.00026999,10]
[376918250,1754164261664,-460.0,0.00026999,10]
[376918251,1754164261674,-460.0,0.00026999,10]
[376918252,1754164261683,-460.0,0.00026999,10]
[376918253,1754164261693,-460.0,0.00026999,10]
[376918254,1754164261702,-342.48942773,0.00026999,10]
[376918255,1754164261714,-117.51057227,0.00026999,10]
[376918256,1754164261818,-210.91900411,0.00026999,10]
[376918257,1754164261831,-170.33042856,0.00026999,10]
[376918258,1754164261842,-460.0,0.00026999,10]
[376918259,1754164261851,-240.14207794,0.00026999,10]
[376918260,1754164261863,-219.85792206,0.00026999,10]
[376918261,1754164261872,-1787.77,0.00026999,10]
[376918262,1754164261882,-1787.77,0.00026999,10]
[376918263,1754164261892,-1787.77,0.00026999,10]
[376918264,1754164261902,-1787.77,0.00026999,10]
[376918265,1754164261911,-1787.77,0.00026999,10]
[376918266,1754164261921,-1787.77,0.00026999,10]
[376918267,1754164261931,-1787.77,0.00026999,10]
[376918268,1754164261940,-1787.77,0.00026999,10]
[376918269,1754164261952,-460.0,0.00026999,10]
[376918270,1754164261964,-1787.77,0.00026999,10]
[376918271,1754164261974,-460.0,0.00026999,10]
[376918272,1754164261983,-1787.77,0.00026999,10]
[376918273,1754164261992,-460.0,0.00026999,10]
[376918274,1754164262002,-1787.77,0.00026999,10]
[376918275,1754164262011,-460.0,0.00026999,10]
[376918276,1754164262021,-1787.77,0.00026999,10]
[376918277,1754164262031,-460.0,0.00026999,10]
[376918278,1754164262040,-380.90337948,0.00026999,10]
[376918279,1754164262063,-604.92249584,0.00026999,10]
[376918280,1754164262160,-500.0,0.00025063,2]
[376918281,1754164262169,-500.0,0.00025063,2]
[376918282,1754164262178,-460.0,0.00026849,10]
[376918283,1754164262188,-460.0,0.00026849,10]
[376918284,1754164262197,-460.0,0.00026849,10]
[376918285,1754164262207,-463.01277919,0.00026849,10]
[376918286,1754164262216,-461.16513797,0.00026849,10]
[376918287,1754164262225,-460.0,0.00026849,10]
[376918288,1754164262234,-19.02208284,0.00026849,10]
[376918289,1754164262275,-272.97791716,0.00026849,10]
[376918290,1754164262284,-460.0,0.00026849,10]
[376918291,1754164262294,-460.0,0.00026849,10]
[376918292,1754164262304,-463.66224488,0.00026849,10]
[376918293,1754164262314,-460.0,0.00026849,10]
[376918294,1754164262323,-194.85171733,0.00026849,10]
[376918295,1754164262335,-464.97238502,0.00026849,10]
[376918296,1754164262345,-801.94412468,0.00026999,10]
[376918297,1754164262355,-460.0,0.00026999,10]
[376918298,1754164262365,-1787.77,0.00026999,10]
[376918299,1754164262374,-533.59219031,0.00026999,10]
[376918300,1754164262385,-1787.8177489,0.00026999,10]
[376918301,1754164262395,-775.03,0.00026999,10]
[376918302,1754164262404,-460.0,0.00026999,10]
[376918303,1754164262414,-370.09900699,0.00026999,10]
[376918304,1754164262423,-775.03,0.00026999,10]
[376918305,1754164262433,-775.03,0.00026999,10]
[376918306,1754164262443,-482.29,0.00026999,10]
[376918307,1754164262452,-460.0,0.00026999,10]
[376918308,1754164262462,-775.03,0.00026999,10]
[376918309,1754164262472,-482.29,0.00026999,10]
[376918310,1754164262482,-474.83523078,0.00026999,10]
[376918311,1754164262497,-775.03,0.00026999,10]
[376918312,1754164262507,-482.29,0.00026999,10]
[376918313,1754164262517,-775.03,0.00026999,10]
[376918314,1754164262526,-482.29,0.00026999,10]
[376918315,1754164262538,-775.03,0.00026999,10]
[376918316,1754164262547,-775.03,0.00026999,10]
[376918317,1754164262557,-775.03,0.00026999,10]
[376918318,1754164262568,-775.03,0.00026999,10]
[376918319,1754164262577,-775.03,0.00026999,10]
[376918320,1754164262590,-775.03,0.00026999,10]
[376918321,1754164262600,-775.03,0.00026999,10]
[376918322,1754164262610,-460.0,0.00026999,10]
[376918323,1754164262620,-775.03,0.00026999,10]
[376918324,1754164262630,-460.0,0.00026999,10]
[376918325,1754164262640,-775.09,0.00026999,10]
[376918326,1754164262650,-482.29,0.00026999,10]
[376918327,1754164262660,-460.0,0.00026999,10]
[376918328,1754164262669,-482.29,0.00026999,10]
[376918329,1754164262679,-460.0,0.00026999,10]
[376918330,1754164262688,-482.29,0.00026999,10]
[376918331,1754164262698,-482.29,0.00026999,10]
[376918332,1754164262707,-460.0,0.00026999,10]
[376918333,1754164262716,-482.29,0.00026999,10]
[376918334,1754164262726,-460.0,0.00026999,10]
[376918335,1754164262735,-460.0,0.00026999,10]
[376918336,1754164262744,-482.29,0.00026999,10]
[376918337,1754164262754,-460.0,0.00026999,10]
[376918338,1754164262763,-482.29,0.00026999,10]
[376918339,1754164262772,-460.0,0.00026999,10]
[376918340,1754164262782,-482.29,0.00026999,10]
[376918341,1754164262792,-460.0,0.00026999,10]
[376918342,1754164262801,-482.29,0.00026999,10]
[376918343,1754164262811,-460.0,0.00026999,10]
[376918344,1754164262820,-482.29,0.00026999,10]
[376918345,1754164262829,-460.0,0.00026999,10]
[376918346,1754164262842,-482.29,0.00026999,10]
[376918347,1754164262851,-460.0,0.00026999,10]
[376918348,1754164262860,-455.0,0.00026999,10]
[376918349,1754164262870,-460.0,0.00026999,10]
[376918350,1754164262879,-460.0,0.00026999,10]
[376918351,1754164262888,-460.0,0.00026999,10]
[376918352,1754164262897,-309.98257874,0.00026999,10]
[376918353,1754164262906,-460.0,0.00026999,10]
[376918354,1754164262915,-460.0,0.00026999,10]
[376918355,1754164262925,-460.0,0.00026999,10]
[376918356,1754164262935,-460.0,0.00026999,10]
[376918357,1754164262944,-460.0,0.00026999,10]
[376918358,1754164262953,-460.0,0.00026999,10]
[376918359,1754164262963,-460.0,0.00026999,10]
[376918360,1754164262972,-519.8,0.00026999,10]
[376918361,1754164262982,-208.79,0.00026999,10]
[376918362,1754164262992,-460.0,0.00026999,10]
[376918363,1754164263002,-460.0,0.00026999,10]
[376918364,1754164263012,-460.0,0.00026999,10]
[376918365,1754164263022,-182.89214781,0.00026999,10]
[376918366,1754164263032,-460.0,0.00026999,10]
[376918367,1754164263042,-460.0,0.00026999,10]
[376918368,1754164263051,-460.0,0.00026999,10]
[376918369,1754164263061,-460.0,0.00026999,10]
[376918370,1754164263071,-460.0,0.00026999,10]
[376918371,1754164263080,-460.0,0.00026999,10]
[376918372,1754164263093,-169.942399,0.00026999,7]
[376918373,1754164263102,-169.942399,0.00026999,7]
[376918374,1754164263112,-169.942399,0.00026999,7]
[376918375,1754164263122,-460.0,0.00026999,10]
[376918376,1754164263132,-460.0,0.00026999,10]
[376918377,1754164263141,-460.0,0.00026999,10]
[376918378,1754164263151,-460.0,0.00026999,10]
[376918379,1754164263161,-460.0,0.00026999,10]
[376918380,1754164263170,-460.0,0.00026999,10]
[376918381,1754164263179,-460.0,0.00026999,10]
[376918382,1754164263188,-460.0,0.00026999,10]
[376918383,1754164263198,-460.0,0.00026999,10]
[376918384,1754164263209,-460.0,0.00026999,10]
[376918385,1754164263218,-356.87804565,0.00026999,10]
[376918386,1754164263228,-460.0,0.00026999,10]
[376918387,1754164263238,-460.0,0.00026999,10]
[376918388,1754164263247,-460.0,0.00026999,10]
[376918389,1754164263257,-460.0,0.00026999,10]
[376918390,1754164263266,-460.0,0.00026999,10]
[376918391,1754164263277,-460.0,0.00026999,10]
[376918392,1754164263286,-460.0,0.00026999,10]
[376918393,1754164263296,-460.0,0.00026999,10]
[376918394,1754164263305,-460.0,0.00026999,10]
[376918395,1754164263315,-460.0,0.00026999,10]
[376918396,1754164263325,-321.45,0.00026999,10]
[376918397,1754164263338,-169.942399,0.00026999,7]
[376918398,1754164263348,-169.942399,0.00026999,7]
[376918399,1754164263358,-169.942399,0.00026999,7]
[376918400,1754164263367,-460.0,0.00026999,10]
[376918401,1754164263377,-151.0,0.00026999,7]
[376918402,1754164263387,-460.0,0.00026999,10]
[376918403,1754164263396,-151.0,0.00026999,7]
[376918404,1754164263406,-151.0,0.00026999,7]
[376918405,1754164263416,-433.68,0.00026999,10]
[376918406,1754164263426,-626.29,0.00026999,10]
[376918407,1754164263436,-626.29,0.00026999,10]
[376918408,1754164263446,-626.29,0.00026999,10]
[376918409,1754164263457,-626.29,0.00026999,10]
[376918410,1754164263467,-626.29,0.00026999,10]
[376918411,1754164263561,-626.29,0.00026999,10]
[376918412,1754164263573,-626.29,0.00026999,10]
[376918413,1754164263583,-460.0,0.00026999,10]
[376918414,1754164263593,-626.29,0.00026999,10]
[376918415,1754164263603,-626.29,0.00026999,10]
[376918416,1754164263612,-626.29,0.00026999,10]
[376918417,1754164263622,-626.29,0.00026999,10]
[376918418,1754164263631,-626.29,0.00026999,10]
[376918419,1754164263640,-626.29,0.00026999,10]
[376918420,1754164263649,-626.29,0.00026999,10]
[376918421,1754164263659,-626.51,0.00026999,10]
[376918422,1754164263669,-460.0,0.00026999,10]
[376918423,1754164263679,-460.0,0.00026999,10]
[376918424,1754164263688,-460.0,0.00026999,10]
[376918425,1754164263698,-460.0,0.00026999,10]
[376918426,1754164263707,-3090.28,0.00026999,10]
[376918427,1754164263717,-3090.28,0.00026999,10]
[376918428,1754164263726,-3090.28,0.00026999,10]
[376918429,1754164263735,-3090.28,0.00026999,10]
[376918430,1754164263745,-3090.28,0.00026999,10]
[376918431,1754164263754,-3090.28,0.00026999,10]
[376918432,1754164263763,-3090.28,0.00026999,10]
[376918433,1754164263773,-3090.28,0.00026999,10]
[376918434,1754164263782,-3090.28,0.00026999,10]
[376918435,1754164263792,-3090.28,0.00026999,10]
[376918436,1754164263802,-3090.28,0.00026999,10]
[376918437,1754164263811,-3090.28,0.00026999,10]
[376918438,1754164263821,-3090.28,0.00026999,10]
[376918439,1754164263830,-3090.28,0.00026999,10]
[376918440,1754164263844,-3090.346384,0.00026999,10]
[376918441,1754164263853,-523.84,0.00026999,10]
[376918442,1754164263862,-523.84,0.00026999,10]
[376918443,1754164263871,-523.84,0.00026999,10]
[376918444,1754164263881,-523.84,0.00026999,10]
[376918445,1754164263890,-523.84,0.00026999,10]
[376918446,1754164263899,-523.84,0.00026999,10]
[376918447,1754164263909,-523.84,0.00026999,10]
[376918448,1754164263920,-523.84,0.00026999,10]
[376918449,1754164263929,-523.84,0.00026999,10]
[376918450,1754164263939,-523.84,0.00026999,10]
[376918451,1754164263948,-523.84,0.00026999,10]
[376918452,1754164263957,-523.84,0.00026999,10]
[376918453,1754164263966,-523.84,0.00026999,10]
[376918454,1754164263976,-523.84,0.00026999,10]
[376918455,1754164263985,-524.04,0.00026999,10]
[376918456,1754164263994,-460.0,0.00026999,10]
[376918457,1754164264004,-172.79,0.00026999,10]
[376918458,1754164264014,-460.0,0.00026999,10]
[376918459,1754164264023,-460.0,0.00026999,10]
[376918460,1754164264032,-460.0,0.00026999,10]
[376918461,1754164264041,-460.0,0.00026999,10]
[376918462,1754164264050,-6.48239209,0.00026999,10]
[376918475,1754164761971,4985.83,0.00021334,2]
[376918476,1754164769140,161.318637,0.00013699,2]
[376918478,1754164865764,486.75814117,0.00021334,2]
[376918480,1754165132501,-1052.043385,0.00024615,2]
[376918481,1754165132526,-103.3133204,0.00024662,2]
[376918483,1754165241081,-1540.67934458,0.00024415,2]
[376918484,1754165241101,-72.6866796,0.00024662,2]
[376918485,1754165241123,-92.08565387,0.00024662,2]
[376918557,1754165432994,-2367.84959165,0.000243,2]
[376919053,1754165438604,-2275.3203943,0.000243,2]
[376919059,1754165438658,-4118.69773725,0.000243,2]
[376919061,1754165438668,-442.26058467,0.00024368,2]
[376919062,1754165438677,-324.50542745,0.00024662,2]
[376919064,1754165438687,-300.0,0.00024662,2]
[376919066,1754165438696,-300.0,0.00024662,2]
[376919068,1754165438705,-1200.0,0.00024662,2]
[376919071,1754165438717,-10927.9356081,0.00024663,2]
[376919073,1754165438728,-1363.0635731,0.00024863,2]
[376919075,1754165438737,-150.0,0.00024899,2]
[376919093,1754165438907,-160.0,0.00025037,2]
[376919095,1754165438917,-570.12378133,0.00025068,2]
[376919097,1754165438926,-150.86,0.00025094,7]
[376919099,1754165438935,-150.86,0.00025194,7]
[376919101,1754165438944,-150.86,0.00025294,7]
[376919102,1754165438955,-22550.71491291,0.00025313,2]
[376919105,1754165438966,-1623.6587001,0.00025313,2]
[376919107,1754165438979,-20894.979477,0.00025313,2]
[376919109,1754165438990,-458.43772167,0.00025313,2]
[376919111,1754165439000,-249.1,0.00025313,6]
[376919113,1754165439011,-500.0,0.00025373,2]
[376919115,1754165439021,-500.0,0.00025373,2]
[376919117,1754165439031,-500.0,0.00025373,2]
[376919119,1754165439040,-150.86,0.00025394,7]
[376919121,1754165439049,-150.86,0.00025494,7]
[376919123,1754165439058,-249.1,0.00025508,6]
[376919124,1754165439068,-226.69856298,0.00025557,2]
[376919126,1754165439078,-150.86,0.00025594,7]
[376919128,1754165439088,-160.0,0.00025634,2]
[376919130,1754165439097,-247.988,0.0002565,10]
[376919132,1754165439109,-12646.87439643,0.00025657,2]
[376919134,1754165439118,-527.02465094,0.00025657,2]
[376919136,1754165439128,-160.0,0.00025657,2]
[376919138,1754165439138,-460.86285458,0.00025657,2]
[376919140,1754165439147,-216.27517063,0.00025657,2]
[376919142,1754165439157,-160.0,0.00025657,2]
[376919144,1754165439166,-231.57249719,0.00025657,2]
[376919146,1754165439175,-215.0795835,0.00025657,2]
[376919148,1754165439185,-264.02,0.00025684,2]
[376919150,1754165439194,-150.86,0.00025694,7]
[376919151,1754165439203,-365.60069734,0.00025698,2]
[376919153,1754165439212,-500.0,0.000257,2]
[376919155,1754165439221,-505.49255292,0.000257,2]
[376919157,1754165439230,-500.0,0.000257,2]
[376919159,1754165439239,-500.0,0.000257,2]
[376919161,1754165439249,-292.68202547,0.000257,2]
[376919163,1754165439261,-500.0,0.000257,2]
[376919165,1754165439270,-249.1,0.00025702,6]
[376919167,1754165439279,-150.86,0.00025794,7]
[376919169,1754165439288,-460.0,0.00025859,2]
[376919171,1754165439297,-226.69856297,0.00025869,2]
[376919173,1754165439306,-150.86,0.00025894,7]
[376919175,1754165439316,-200.0,0.00025896,15]
[376919177,1754165439326,-300.0,0.00025896,15]
[376919179,1754165439336,-249.1,0.00025897,6]
[376919181,1754165439345,-150.86,0.00025994,7]
[376919183,1754165439354,-1000.0,0.00026018,5]
[376919185,1754165439363,-249.1,0.00026091,6]
[376919187,1754165439373,-150.86,0.00026094,7]
[376919189,1754165439382,-226.69856297,0.0002618,2]
[376919190,1754165439391,-150.86,0.00026194,7]
[376919192,1754165439400,-249.1,0.00026286,6]
[376919194,1754165439410,-150.86,0.00026294,7]
[376919196,1754165439418,-970.0,0.00026358,2]
[376919198,1754165439428,-635.0,0.00026358,2]
[376919200,1754165439437,-150.86,0.00026394,7]
[376919202,1754165439446,-249.1,0.00026481,7]
[376919204,1754165439456,-226.69856297,0.00026492,2]
[376919206,1754165439466,-150.86,0.00026494,7]
[376919208,1754165439475,-150.86,0.00026594,7]
[376919210,1754165439485,-249.1,0.00026675,7]
[376919212,1754165439494,-407.0,0.00026691,2]
[376919214,1754165439505,-150.86,0.00026694,7]
[376919216,1754165439515,-500.0,0.00026733,2]
[376919218,1754165439524,-218.0255472,0.00026733,2]
[376919220,1754165439534,-264.81248522,0.00026749,2]
[376919221,1754165439543,-38399.61663199,0.00026749,2]
[376919223,1754165439552,-264.81248518,0.00026787,2]
[376919225,1754165439562,-150.86,0.00026794,7]
[376919228,1754165439574,-226.69856297,0.00026803,2]
[376919229,1754165439583,-2146.0,0.00026825,2]
[376919231,1754165439593,-264.81248518,0.00026825,2]
[376919233,1754165439602,-500.0,0.0002683,5]
[376919235,1754165439612,-300.30314443,0.00026847,2]
[376919237,1754165439621,-500.0,0.00026847,2]
[376919239,1754165439630,-500.0,0.00026847,2]
[376919241,1754165439640,-501.7886751,0.00026847,2]
[376919243,1754165439649,-500.0,0.00026847,2]
[376919245,1754165439663,-398.68845294,0.00026847,2]
[376919247,1754165439672,-500.0,0.00026847,2]
[376919249,1754165439682,-465.22099106,0.00026847,2]
[376919251,1754165439691,-500.0,0.00026847,2]
[376919253,1754165439701,-174.22281242,0.00026847,2]
[376919255,1754165439710,-500.0,0.00026847,2]
[376919256,1754165439720,-500.0,0.00026847,2]
[376919258,1754165439730,-500.0,0.00026847,2]
[376919260,1754165439740,-500.0,0.00026847,2]
[376919262,1754165439750,-500.0,0.00026847,2]
[376919264,1754165439764,-183.47667746,0.00026847,2]
[376919266,1754165439773,-500.0,0.00026847,2]
[376919268,1754165439783,-500.0,0.00026847,2]
[376919270,1754165439792,-500.0,0.00026847,2]
[376919272,1754165439801,-10.11664629,0.00026847,2]
[376919274,1754165439817,-489.88335371,0.00026847,2]
[376919276,1754165439827,-500.0,0.00026847,2]
[376919278,1754165439836,-500.0,0.00026847,2]
[376919280,1754165439845,-500.0,0.00026847,2]
[376919282,1754165439854,-500.0,0.00026847,2]
[376919283,1754165439863,-500.0,0.00026847,2]
[376919285,1754165439872,-500.0,0.00026847,2]
[376919287,1754165439882,-500.0,0.00026847,2]
[376919289,1754165439891,-431.89013191,0.00026847,2]
[376919291,1754165439901,-500.0,0.00026847,2]
[376919293,1754165439914,-248.70072236,0.00026847,2]
[376919296,1754165439930,-177.84815457,0.00026847,2]
[376919298,1754165439940,-500.0,0.00026847,2]
[376919300,1754165439950,-500.0,0.00026847,2]
[376919302,1754165439960,-500.0,0.00026847,2]
[376919303,1754165439969,-500.0,0.00026847,2]
[376919305,1754165439978,-500.0,0.00026847,2]
[376919307,1754165439988,-500.0,0.00026847,2]
[376919309,1754165439998,-500.0,0.00026847,2]
[376919311,1754165440011,-500.0,0.00026847,2]
[376919313,1754165440021,-500.0,0.00026847,2]
[376919315,1754165440030,-500.0,0.00026847,2]
[376919317,1754165440039,-500.0,0.00026847,2]
[376919319,1754165440049,-196.10399485,0.00026847,2]
[376919321,1754165440058,-500.0,0.00026847,2]
[376919323,1754165440067,-500.0,0.00026847,2]
[376919325,1754165440078,-500.0,0.00026847,2]
[376919327,1754165440088,-297.34369015,0.00026847,2]
[376919329,1754165440097,-500.0,0.00026847,2]
[376919331,1754165440106,-500.0,0.00026847,2]
[376919333,1754165440115,-500.0,0.00026847,2]
[376919335,1754165440125,-500.0,0.00026847,2]
[376919336,1754165440133,-500.0,0.00026847,2]
[376919338,1754165440143,-500.0,0.00026847,2]
[376919340,1754165440152,-500.0,0.00026847,2]
[376919342,1754165440161,-500.0,0.00026847,2]
[376919344,1754165440170,-500.0,0.00026847,2]
[376919346,1754165440180,-500.0,0.00026847,2]
[376919348,1754165440189,-500.0,0.00026847,2]
[376919350,1754165440199,-500.0,0.00026847,2]
[376919352,1754165440208,-500.0,0.00026847,2]
[376919354,1754165440218,-500.0,0.00026847,2]
[376919356,1754165440227,-500.0,0.00026847,2]
[376919358,1754165440237,-500.0,0.00026847,2]
[376919360,1754165440246,-500.0,0.00026847,2]
[376919362,1754165440256,-500.0,0.00026847,2]
[376919364,1754165440266,-500.0,0.00026847,2]
[376919366,1754165440276,-500.0,0.00026847,2]
[376919368,1754165440286,-500.0,0.00026847,2]
[376919370,1754165440296,-500.0,0.00026847,2]
[376919372,1754165440305,-500.0,0.00026847,2]
[376919374,1754165440314,-500.0,0.00026847,2]
[376919375,1754165440324,-500.0,0.00026847,2]
[376919377,1754165440333,-500.0,0.00026847,2]
[376919379,1754165440343,-500.0,0.00026847,2]
[376919381,1754165440352,-500.0,0.00026847,2]
[376919383,1754165440361,-500.0,0.00026847,2]
[376919385,1754165440370,-500.0,0.00026847,2]
[376919387,1754165440379,-500.0,0.00026847,2]
[376919389,1754165440388,-500.0,0.00026847,2]
[376919391,1754165440397,-221.70664613,0.00026847,2]
[376919393,1754165440406,-500.0,0.00026847,2]
[376919395,1754165440416,-500.0,0.00026847,2]
[376919397,1754165440425,-500.0,0.00026847,2]
[376919398,1754165440434,-500.0,0.00026847,2]
[376919400,1754165440444,-500.0,0.00026847,2]
[376919402,1754165440453,-500.0,0.00026847,2]
[376919404,1754165440462,-500.0,0.00026847,2]
[376919406,1754165440471,-500.0,0.00026847,2]
[376919408,1754165440481,-500.0,0.00026847,2]
[376919410,1754165440490,-266.83703078,0.00026847,2]
[376919412,1754165440499,-500.0,0.00026847,2]
[376919414,1754165440511,-500.0,0.00026847,2]
[376919416,1754165440520,-500.0,0.00026847,2]
[376919418,1754165440530,-500.0,0.00026847,2]
[376919420,1754165440539,-500.0,0.00026847,2]
[376919422,1754165440549,-500.0,0.00026847,2]
[376919424,1754165440558,-6644.69,0.00026848,2]
[376919426,1754165440567,-157.0,0.00026848,2]
[376919428,1754165440577,-207.48422444,0.00026848,2]
[376919430,1754165440586,-151.0,0.00026849,7]
[376919432,1754165440595,-151.0,0.00026849,7]
[376919434,1754165440605,-151.0,0.00026849,7]
[376919436,1754165440614,-460.0,0.00026849,10]
[376919437,1754165440623,-181.324,0.00026849,7]
[376919439,1754165440633,-181.324,0.00026849,7]
[376919441,1754165440642,-181.324,0.00026849,7]
[376919443,1754165440652,-181.324,0.00026849,7]
[376919445,1754165440661,-181.324,0.00026849,7]
[376919447,1754165440671,-181.324,0.00026849,7]
[376919449,1754165440681,-460.0,0.00026849,10]
[376919451,1754165440691,-216.27517063,0.00026849,10]
[376919453,1754165440700,-460.0,0.00026849,10]
[376919455,1754165440711,-460.0,0.00026849,10]
[376919457,1754165440721,-508.42,0.00026849,10]
[376919459,1754165440731,-460.0,0.00026849,10]
[376919461,1754165440740,-460.0,0.00026849,10]
[376919463,1754165440750,-460.0,0.00026849,10]
[376919465,1754165440762,-460.0,0.00026849,10]
[376919467,1754165440771,-460.0,0.00026849,10]
[376919469,1754165440781,-460.0,0.00026849,10]
[376919470,1754165440791,-460.0,0.00026849,10]
[376919472,1754165440807,-460.0,0.00026849,10]
[376919474,1754165440817,-460.0,0.00026849,10]
[376919476,1754165440826,-486.24579731,0.00026849,10]
[376919478,1754165440835,-460.0,0.00026849,10]
[376919480,1754165440845,-460.0,0.00026849,10]
[376919482,1754165440855,-460.0,0.00026849,10]
[376919484,1754165440864,-460.0,0.00026849,10]
[376919486,1754165440873,-460.0,0.00026849,10]
[376919488,1754165440883,-460.0,0.00026849,10]
[376919490,1754165440891,-460.0,0.00026849,10]
[376919492,1754165440902,-460.0,0.00026849,10]
[376919494,1754165440913,-460.0,0.00026849,10]
[376919496,1754165440923,-460.0,0.00026849,10]
[376919498,1754165440933,-460.0,0.00026849,10]
[376919500,1754165440942,-460.0,0.00026849,10]
[376919502,1754165440952,-460.0,0.00026849,10]
[376919503,1754165440961,-460.0,0.00026849,10]
[376919504,1754165440970,-460.0,0.00026849,10]
[376919505,1754165440981,-460.0,0.00026849,10]
[376919506,1754165440991,-460.0,0.00026849,10]
[376919507,1754165440999,-460.0,0.00026849,10]
[376919508,1754165441011,-460.0,0.00026849,10]
[376919509,1754165441020,-460.0,0.00026849,10]
[376919510,1754165441029,-460.0,0.00026849,10]
[376919511,1754165441039,-408.03078562,0.00026849,10]
[376919512,1754165441048,-460.0,0.00026849,10]
[376919513,1754165441057,-460.51848876,0.00026849,10]
[376919514,1754165441067,-460.0,0.00026849,10]
[376919515,1754165441077,-460.0,0.00026849,10]
[376919516,1754165441086,-460.0,0.00026849,10]
[376919517,1754165441096,-460.0,0.00026849,10]
[376919519,1754165441106,-460.0,0.00026849,10]
[376919521,1754165441115,-460.0,0.00026849,10]
[376919523,1754165441124,-460.0,0.00026849,10]
[376919525,1754165441133,-460.0,0.00026849,7]
[376919527,1754165441142,-482.89350284,0.00026849,7]
[376919529,1754165441151,-597.93,0.00026849,10]
[376919531,1754165441160,-460.0,0.00026849,10]
[376919533,1754165441169,-327.52889615,0.00026849,10]
[376919535,1754165441178,-460.0,0.00026849,10]
[376919537,1754165441187,-460.0,0.00026849,10]
[376919539,1754165441196,-460.74030911,0.00026849,10]
[376919541,1754165441205,-460.0,0.00026849,10]
[376919543,1754165441214,-460.0,0.00026849,10]
[376919545,1754165441223,-460.51803613,0.00026849,10]
[376919547,1754165441232,-460.0,0.00026849,10]
[376919549,1754165441242,-460.0,0.00026849,10]
[376919551,1754165441251,-609.29969677,0.00026849,10]
[376919553,1754165441265,-460.0,0.00026849,10]
[376919555,1754165441275,-460.0,0.00026849,10]
[376919557,1754165441284,-460.0,0.00026849,10]
[376919559,1754165441294,-460.0,0.00026849,10]
[376919561,1754165441303,-460.0,0.00026849,5]
[376919563,1754165441313,-460.0,0.00026849,10]
[376919565,1754165441322,-460.0,0.00026849,10]
[376919567,1754165441331,-316.23059141,0.00026849,10]
[376919569,1754165441341,-460.0,0.00026849,10]
[376919571,1754165441351,-460.0,0.00026849,10]
[376919573,1754165441360,-220.80612622,0.00026849,10]
[376919575,1754165441370,-460.0,0.00026849,10]